[Event "Charlotte IM-D May 2022"]
[Site "Charlotte"]
[Date "2022.05.05"]
[Round "2.4"]
[White "Marek, Matyas"]
[Black "Chen, Ryo"]
[Result "0-1"]
[ECO "B51"]
[WhiteElo "2363"]
[BlackElo "2265"]
[Annotator "TA"]
[PlyCount "82"]
[EventDate "2022.05.04"]
[EventType "tourn"]
[EventCountry "USA"]
[SourceTitle "playchess.com"]
[Source "ChessBase"]
[SourceQuality "1"]
[TimeControl "5400+30"]

{[%evp 9,82,18,24,31,23,39,29,0,0,0,13,17,16,22,22,16,26,0,0,-16,-5,-29,16,0,4,0,-14,-59,-26,-60,-30,-32,-26,-25,-25,-109,-71,-59,-47,-115,-114,-236,-19,-37,-25,-38,-39,-144,-136,-194,-43,-29,0,-36,-36,-48,66,0,0,0,4,0,0,0,0,0,0,0,0,-29988,-29989,-29991,-29992,-29992,-29993]} 1. e4 {[%emt 0:01:29]} c5 {[%emt 0:00:14]} 2. Nf3 {[%emt 0:00:04]} d6 {[%emt 0:00:10]} 3. Bb5+ {[%emt 0:00:04]} Nd7 {[%emt 0:00:13]} 4. a4 {[%emt 0:00:06][%cal Ba2a4,Ba4a5][%mdl 32]} Ngf6 {[%emt 0:00:17]} 5. Nc3 {[%emt 0:00:05]} g6 {[%emt 0:01:31]} 6. O-O {[%emt 0:03:35] B51: Sicilian: Moscow Variation (3 Bb5+) without 3...Bd7.} Bg7 {[%emt 0:00:17]} 7. a5 {[%emt 0:01:52]} a6 {[%emt 0:00:30]} 8. Ba4 {[%emt 0:04:12] White has an edge.} O-O {[%emt 1:31:18]} 9. Bb3 {[%emt 0:00:13]} b5 {[%emt 0:00:00]} (9... Nb8 $5 {[%cal Rb8c6]}) 10. axb6 $1 {[%emt 0:00:07]} Bb7 {[%emt 0:00:00]} 11. d3 {[%emt 0:00:46]} Nxb6 {[%emt 0:00:00]} 12. Re1 {[%emt 0:05:22] [#]} a5 $146 {[%emt 0:00:00][%cal Oa5a4]} ({Predecessor:} 12... e6 13. e5 dxe5 14. Nxe5 Nfd5 15. Na4 Nxa4 16. Bxa4 Nb6 17. Qg4 Qd4 18. Qxd4 cxd4 {½-½ (30) Giri,A (2778)-Vachier Lagrave,M (2765) Reykjavik 2015}) 13. Be3 {[%emt 0:15:00]} Bc6 {[%emt 0:00:00]} 14. Ra3 {[%emt 0:06:43]} Qc7 {[%emt 0:00:00]} 15. Qa1 {[%emt 0:05:31]} Ra7 {[%emt 0:00:00][%cal Oa5a4]} 16. h3 {[%emt 0:04:25]} ({Don't blunder} 16. Rxa5 $2 Rxa5 17. Qxa5 Ra8 $19) 16... Rfa8 {[%emt 0:00:00]} 17. Ng5 {[%emt 0:22:30]} e6 {[%emt 0:00:00]} 18. f4 {[%emt 0:01:02][%cal Of4f5]} a4 {[%emt 0:00:00]} 19. Ba2 {[%emt 0:00:27][%cal Of4f5]} h6 {[%emt 0:00:00]} (19... d5 {with more complications.} 20. Bxc5 h6 21. Nf3 dxe4 22. dxe4 Nh5) 20. Nf3 {[%emt 0:02:24]} Bf8 {[%emt 0:00:00]} 21. Qc1 {[%emt 0:08:17][%cal Of4f5]} Kh7 {[%emt 0:00:00]} 22. f5 {[%emt 0:02:21]} (22. Bf2 $11 {keeps the balance.}) 22... exf5 {[%emt 0:00:00]} (22... gxf5 {keeps more tension.} 23. Rf1 fxe4 24. Nd2 Bg7) 23. exf5 {[%emt 0:00:09]} Bxf3 {[%emt 0:07:30]} 24. fxg6+ {[%emt 0:05:00]} (24. Nb5 $1 $15 Qd7 25. Nxa7) 24... fxg6 $17 {[%emt 0:00:00]} 25. Rf1 {[%emt 0:07:55] [#]} (25. Nb5 $17 {was worth a try.} Qd7 26. Nxa7) 25... Qc6 $1 {[%emt 0:00:00]} 26. Rxf3 $11 {[%emt 0:00:30]} d5 {[%emt 0:00:00]} 27. Qf1 {[%emt 0:00:22]} Bg7 {[%emt 0:00:00] ...d4 is the strong threat.} 28. Bd2 {[%emt 0:00:24]} (28. d4 $15 c4 29. Ne2) 28... Re7 $17 {[%emt 0:00:00]} 29. b3 {[%emt 0:01:14] [#]} (29. Be1 $17 {is a better defense.}) 29... Rae8 $2 {[%emt 0:00:00]} ({Black should play} 29... c4 $1 $19 {Strongly threatening ...Qc5+.} 30. b4 d4) 30. bxa4 $15 {[%emt 0:01:04]} d4 {[%emt 0:00:00]} (30... c4 $5 {[%cal Rc6c5]} 31. Nb5 Nh5 $11) 31. Ne4 {[%emt 0:01:02]} (31. Nb5 $5 {[%cal Rc2c4]}) 31... Nxe4 {[%emt 0:00:00]} 32. dxe4 {[%emt 0:00:02] Black must now prevent a5.} Qxe4 {[%emt 0:00:00]} (32... c4 $1 $15 33. a5 c3 34. axb6 cxd2) 33. Qd3 {[%emt 0:00:50]} ({White should try} 33. Bf7 $1 $14 Rd8 34. Rf4) 33... Qc6 $36 {[%emt 0:00:03][%mdl 2048] Hoping for ...c4. Black has good play.} 34. Qb5 {[%emt 0:00:51]} Qd6 {[%emt 0:01:37]} 35. a5 {[%emt 0:01:06]} Nd5 {[%emt 0:00:29] And now ...Nc3 would win.} 36. Bxd5 {[%emt 0:00:44]} Qxd5 {[%emt 0:00:18]} 37. Rf2 {[%emt 0:00:33] Against Re2} d3 {[%emt 0:01:46]} 38. Rxd3 {[%emt 0:00:35]} Bd4 {[%emt 0:00:15]} 39. Kf1 {[%emt 0:00:30][%mdl 8192]} (39. Kh2 $11) 39... Qa2 {[%emt 0:00:32] Black mates.} 40. g4 {[%emt 0:00:32]} Qa1+ {[%emt 0:00:36]} 41. Kg2 {[%emt 0:00:05]} Bxf2 {[%emt 0:00:06] Weighted Error Value: White=0.45/Black=0.25 (precise)} 0-1

[Event "Charlotte IM-D May 2022"]
[Site "Charlotte"]
[Date "2022.05.05"]
[Round "2.5"]
[White "Rodriguez Rivera, Pedro"]
[Black "Wang, Eigen"]
[Result "0-1"]
[ECO "D05"]
[WhiteElo "2197"]
[BlackElo "2269"]
[Annotator "TA"]
[PlyCount "102"]
[EventDate "2022.05.04"]
[EventType "tourn"]
[EventCountry "USA"]
[SourceTitle "playchess.com"]
[Source "ChessBase"]
[SourceQuality "1"]
[TimeControl "5400+30"]

{[%evp 9,102,-5,3,2,0,0,0,0,9,10,-1,-5,11,0,7,10,13,8,13,17,27,9,10,9,26,0,42,41,110,-20,0,-9,41,41,16,-39,-28,-28,-39,-195,-65,-39,-21,-184,-183,-162,-166,-164,-172,-182,-179,-172,-157,-161,-162,-287,-287,-349,-129,-134,-139,-280,-179,-179,-56,-35,0,-294,-294,-294,-294,-337,-296,-387,-387,-458,-456,-710,-703,-6112,-6291,-6103,-6032,-29984,-29985,-29985,-29986,-29989,-29990,-29997,-29972,-29969,-4922,-29970,-29965]} 1. d4 {[%emt 0:03:49]} Nf6 {[%emt 0:00:16]} 2. Nf3 {[%emt 0:00:07]} d5 {[%emt 0:02:10]} 3. e3 {[%emt 0:02:02]} e6 {[%emt 0:00:24]} 4. Bd3 {[%emt 0:00:02]} c5 {[%emt 0:00:37]} 5. c3 {[%emt 0:00:01]} Be7 {[%emt 0:01:08]} 6. Nbd2 {[%emt 0:00:48] D05: Colle System with ...e6.} O-O {[%emt 0:01:25]} 7. O-O {[%emt 0:00:07]} b6 {[%emt 0:03:14]} 8. e4 {[%emt 1:27:34] The position is equal.} Ba6 {[%emt 0:01:24]} 9. Bxa6 {[%emt 0:00:00]} Nxa6 {[%emt 0:00:05]} 10. Qe2 {[%emt 0:00:00] Strongly threatening e5.} Nc7 {[%emt 0:11:27]} 11. Re1 {[%emt 0:00:00]} Re8 {[%emt 0:01:18]} 12. e5 {[%emt 0:00:00]} Nd7 {[%emt 0:00:27]} 13. Nf1 {[%emt 0:00:00][%cal Bd2f1,Bf1g3,Bg3h5][%mdl 32] [#]} b5 $146 {[%emt 0:03:40]} ({Predecessor:} 13... c4 14. Be3 b5 15. b4 cxb3 16. axb3 a5 17. Rec1 Nb6 18. Ne1 a4 19. b4 Nc4 {0-1 (43) Lower,S-Root,D (2400) Phoenix 1981}) 14. dxc5 {[%emt 0:00:00]} Nxc5 {[%emt 0:00:38]} 15. Nd4 {[%emt 0:00:00]} Qd7 {[%emt 0:01:06]} 16. Ng3 {[%emt 0:00:00]} Rab8 {[%emt 0:02:33]} 17. Qg4 {[%emt 0:00:00]} Kh8 {[%emt 0:07:56]} 18. Nh5 {[%emt 0:00:00][%csl Gh5][%cal Rg4g7]} Rg8 {[%emt 0:01:00]} (18... g6 $14) 19. Bg5 {[%emt 0:00:00]} (19. Re3 $16) 19... Bxg5 $11 {[%emt 0:04:54]} 20. Qxg5 {[%emt 0:00:00]} Ne4 {[%emt 0:01:12]} ({Black should try} 20... b4 $1 $11) 21. Qf4 $1 $14 {[%emt 0:00:00]} b4 {[%emt 0:03:49]} 22. Re3 {[%emt 0:00:00]} (22. c4 $11) 22... bxc3 $15 {[%emt 0:04:54]} 23. bxc3 {[%emt 0:00:00]} Nb5 {[%emt 0:10:08]} 24. Rh3 {[%emt 0:00:00]} (24. Nxb5 $15 Qxb5 25. Qxf7) 24... Nxd4 {[%emt 0:03:03]} (24... Nexc3 $2 25. Nf6 $1 {[%mdl 512]} gxf6 26. Qh4 $18) ({Black should play} 24... Nbxc3 $19 {Hoping for ...Qa4.} 25. Rd3 Qb7) 25. cxd4 {[%emt 0:00:00]} Qe7 $36 {[%emt 0:17:57][%mdl 2048] Black has the initiative.} (25... Qa4 $5 {[%cal Ra4a2]} 26. Ng3 g5 $11) 26. f3 $2 {[%emt 0:00:00] [#]} (26. Rc1 $11) 26... Qb4 $1 $19 {[%emt 0:01:25]} 27. Qe3 {[%emt 0:00:00] [#]} Qc3 $1 {[%emt 0:00:49]} 28. Qxc3 {[%emt 0:00:00]} Nxc3 {[%emt 0:15:31]} 29. Kf1 {[%emt 0:00:00]} Rb2 {[%emt 0:00:00]} 30. f4 {[%emt 0:00:00]} Rc2 {[%emt 0:00:00]} ({Not} 30... Rxa2 31. Rxa2 Nxa2 32. Ra3 $11) (30... Nxa2 31. Ra3 Nb4 32. Rxa7 $17) 31. Rf3 {[%emt 0:00:00]} Ne4 {[%emt 0:00:00][%cal Bc3e4,Be4d2,Bd2c4][%mdl 32] Prevents Rf2.} 32. Ra3 {[%emt 0:00:00]} (32. Kg1 $142) 32... Rb8 $1 {[%emt 0:00:00]} 33. Rxa7 {[%emt 0:00:00] [#]} Kg8 {[%emt 0:00:00]} (33... g6 $1 $19 {[%cal Rg6h5] is more deadly.} 34. Nf6 Rbb2 35. Ra8+ Kg7 36. Rg8+ Kh6 37. Ng4+ Kh5) 34. Ng3 {[%emt 0:00:00]} Nd2+ {[%emt 0:00:00][%mdl 1024] Black has strong compensation.} 35. Ke1 {[%emt 0:00:00]} (35. Kg1 $17 {is the only way for White.}) 35... Nc4 {[%emt 0:03:30]} 36. Ne2 {[%emt 0:00:00]} g6 {[%emt 0:00:00]} (36... g5 $19 {White must now prevent ...Rbb2.} 37. Kf2 Rbb2) 37. Rc1 $15 {[%emt 0:00:00]} Rcb2 {[%emt 0:00:00]} 38. Kf2 $2 {[%emt 0:00:00][%mdl 8192] [#]} (38. g3 $11 {and White stays safe.}) 38... Rd2 $1 $19 {[%emt 0:00:00]} 39. Re1 {[%emt 0:00:00]} Rbb2 {[%emt 0:00:00]} 40. a4 {[%emt 0:00:00]} Rxd4 {[%emt 0:00:00]} 41. g3 {[%emt 0:00:00]} Rdd2 {[%emt 0:00:00]} 42. a5 {[%emt 0:00:00]} d4 {[%emt 0:00:00][%cal Bd5d4,Bd4d3][%mdl 32] ...d3 is the strong threat.} 43. a6 {[%emt 0:00:00]} (43. Rc7 $142 Nxa5 44. Kf3) 43... d3 {[%emt 0:00:44][%cal Rd2e2]} 44. Rb7 {[%emt 0:03:30]} Rxe2+ {[%emt 0:00:20]} 45. Rxe2 {[%emt 0:00:14]} Rxe2+ {[%emt 0:00:04][%mdl 4096] Endgame KRN-KR} 46. Kf3 {[%emt 0:00:16]} Nd2+ {[%emt 0:02:03]} 47. Kg4 {[%emt 0:00:13]} h5+ {[%emt 0:00:26]} 48. Kg5 {[%emt 0:01:01]} Kg7 {[%emt 0:02:53][%cal Rd2f3]} 49. f5 {[%emt 0:00:57]} Rxe5 {[%emt 0:00:00]} 50. a7 {[%emt 0:00:15]} Rxf5+ {[%emt 0:00:00]} 51. Kh4 {[%emt 0:00:02]} Ra5 {[%emt 0:00:00] Weighted Error Value: White=0.72/Black=0.20 (precise)} 0-1

[Event "Charlotte IM-D May 2022"]
[Site "Charlotte"]
[Date "2022.05.06"]
[Round "3.1"]
[White "Wang, Eigen"]
[Black "Rosenberg, Evan S"]
[Result "1/2-1/2"]
[ECO "D11"]
[WhiteElo "2269"]
[BlackElo "2035"]
[Annotator "TA"]
[PlyCount "118"]
[EventDate "2022.05.04"]
[EventType "tourn"]
[EventCountry "USA"]
[SourceTitle "playchess.com"]
[Source "ChessBase"]
[SourceQuality "1"]
[TimeControl "5400+30"]

{[%evp 14,118,4,8,27,22,31,37,28,27,37,32,39,50,43,36,45,50,58,45,89,54,96,102,114,102,105,95,105,96,142,139,153,98,184,76,154,160,154,102,206,127,145,147,146,75,73,64,171,163,175,153,161,172,190,176,211,208,198,186,233,199,305,289,290,303,297,299,280,266,680,268,255,267,258,242,253,245,264,247,268,239,227,0,0,0,0,0,0,0,0,-54,-46,-46,-46,-83,-83,-583,-583,-479,-327,-304,0,0,0,0,0]} 1. d4 {[%emt 1:31:00]} d5 {[%emt 1:31:00]} 2. Nf3 {[%emt 0:00:00]} Bf5 {[%emt 0:00:00]} 3. g3 Nf6 {[%emt 0:01:00]} 4. Bg2 {[%emt 0:01:30]} h6 {[%emt 0:00:00]} 5. O-O {[%emt 0:00:30]} e6 {[%emt 0:01:00]} 6. c4 {[%emt 0:00:00]} c6 {[%emt 0:00:30]} 7. Nc3 {[%emt 0:01:00]} Nbd7 {[%emt 0:00:00]} 8. Nd2 {8.Qb3 deserves study.} Qb6 {[%emt 0:01:00] [#] D11: Slav Defence: 3 Nf3 sidelines and 3...Nf6 4 e3 Bg4.} 9. cxd5 $146 {[%emt 0:01:00]} ({Predecessor:} 9. e4 dxe4 10. Ndxe4 Nxe4 11. Nxe4 Bxe4 12. Bxe4 Nf6 13. Bg2 Rd8 14. Be3 Be7 15. Qe2 Qa6 16. Bf3 {½-½ (24) Pessi,J (2087)-Salmelin,A (2027) Finland 2018}) 9... cxd5 {[%emt 0:00:30]} 10. e4 {[%emt 0:00:30]} dxe4 {[%emt 0:00:00] White is slightly better.} 11. Ndxe4 {[%emt 0:00:00]} Be7 {[%emt 0:01:00]} 12. Nxf6+ {[%emt 0:01:00]} Nxf6 {[%emt 0:00:30]} 13. Qa4+ {[%emt 0:00:00]} Kf8 {[%emt 0:00:00]} 14. Qb3 {[%emt 0:00:00]} (14. d5 {keeps more tension.} Rd8 15. dxe6 Bc5 16. e7+) 14... Qxb3 {[%emt 0:00:00]} 15. axb3 {[%emt 0:00:00]} a5 {[%emt 0:00:00]} 16. Bxb7 {[%emt 0:00:00]} Ra7 {[%emt 0:00:00]} 17. Bg2 {[%emt 0:00:00]} Bd3 {[%emt 0:00:00]} 18. Re1 {[%emt 0:00:00]} Bb4 {[%emt 0:00:00]} 19. Re3 {[%emt 0:00:00]} Ba6 {[%emt 0:00:00]} 20. Na2 {[%emt 0:00:00]} Bd6 {[%emt 0:00:00]} 21. Bd2 {[%emt 0:00:00]} Ke7 {[%emt 0:00:00]} (21... Bb7 $142) 22. Bxa5 {[%emt 0:00:00] Black must now prevent Nb4.} Rb8 {[%emt 0:00:00] Inhibits Nb4.} 23. Nc3 {[%emt 0:00:00]} (23. Nc1 $142) 23... Kd7 {[%emt 0:00:00]} (23... Kf8 $16 {was worth a try.}) 24. Na4 (24. d5 $1 $18) 24... Bb5 {[%emt 0:00:00]} (24... Bb7 $142) 25. Nc5+ Ke8 {[%emt 0:00:00]} 26. b4 (26. Ree1 $142) 26... Bc4 {[%emt 0:00:00]} (26... Kf8 $16) 27. Bc6+ Kf8 {[%emt 0:07:30]} 28. Rea3 {[%emt 0:00:00][%cal Be3a3,Ba3a2,Ba2d2][%mdl 32]} Kg8 {[%emt 0:00:30]} 29. b3 {[%emt 0:00:00]} (29. Rc1 $142 Bd5 30. b5) 29... Bb5 $16 {[%emt 0:00:00]} 30. Bf3 {[%emt 0:00:00]} e5 {[%emt 0:00:00]} ({Better is} 30... Nd5 $14) 31. dxe5 $1 $18 {[%emt 0:00:00]} Bxe5 {[%emt 0:00:00]} 32. Rd1 {[%emt 0:00:00]} g5 {[%emt 0:00:00]} 33. Ra2 {[%emt 0:00:00]} g4 {[%emt 0:00:00]} 34. Bg2 {[%emt 0:00:11]} h5 {[%emt 0:00:00]} 35. Rad2 {[%emt 0:01:23]} Kg7 {[%emt 0:00:00]} 36. h4 Re8 {[%emt 0:00:00]} (36... gxh3 $142 37. Bxh3 Rh8) 37. Rd8 {[%emt 0:01:53]} Rae7 (37... Rxd8 $142 38. Rxd8 (38. Bxd8 Ra2 $16) 38... Nd7 39. Nxd7 Rxd7 40. Rxd7 Bxd7) 38. Rxe8 {[%emt 0:00:48]} Rxe8 {[%emt 0:00:47]} 39. Bf1 {[%emt 0:00:26]} Bxf1 {[%emt 0:00:30]} 40. Kxf1 {[%emt 0:09:19] Strongly threatening b5.} Bc3 {[%emt 0:00:28]} 41. Rd3 {[%emt 0:00:00]} Re1+ {[%emt 0:04:45]} 42. Kg2 {[%emt 0:00:00]} Rc1 {[%emt 0:00:00]} 43. Na4 Be1 {[%emt 0:00:00]} 44. Re3 {Inhibits Ne4.} Nd7 {[%emt 0:01:30]} 45. Nb2 {[%emt 0:02:30] Prevents Rd1.} Rb1 {[%emt 0:00:30]} 46. Nd3 {[%emt 0:00:00]} Bd2 {[%emt 0:00:30]} 47. Re2 {[%emt 0:00:00]} Bc3 {[%emt 0:00:00] [#]} 48. Nf4 $2 (48. Bc7 $1 $18) 48... Ne5 $1 $11 {[%emt 0:01:00]} 49. Re3 {[%emt 0:00:01]} Nf3 {[%emt 0:00:30]} 50. Rxf3 {[%emt 0:01:24]} ({Not} 50. Nxh5+ $2 Kh6 51. Rxf3 gxf3+ 52. Kxf3 Kxh5 $19) 50... gxf3+ {[%emt 0:00:30]} 51. Kxf3 {[%emt 0:00:03]} Rxb3 {[%emt 0:00:00][%mdl 4096] Endgame KRB-KBN} 52. Kg2 {[%emt 0:00:13]} (52. Nxh5+ Kh6 53. Kg4 f5+ 54. Kxf5 Kxh5 55. g4+ Kxh4 $17) (52. Ke4 $11) 52... Be5 {[%emt 0:00:00]} 53. Nxh5+ {[%emt 0:00:36]} Kg6 {[%emt 0:00:00]} 54. g4 {[%emt 0:00:06] [#]} f5 $1 {[%emt 0:00:00][%mdl 1024] Black has strong compensation.} 55. f3 $2 {[%emt 0:00:26][%mdl 8192]} (55. Ng3 $17 fxg4 56. b5) 55... Rb2+ $19 {[%emt 0:00:00]} 56. Kf1 {[%emt 0:02:41][%cal Ob4b5]} Rh2 {[%emt 0:01:22]} 57. Bd8 {[%emt 0:00:00]} Bd4 $2 {[%emt 0:01:08]} ({Black should play} 57... fxg4 $19 58. fxg4 Rc2) 58. Nf4+ $11 {[%emt 0:00:00]} Kf7 {[%emt 0:01:30] aiming for ...Rf2+.} 59. gxf5 {[%emt 0:00:00]} Bf6 {[%emt 0:00:00] White used his chance.  Weighted Error Value: White=0.31/Black=0.26 (precise)} 1/2-1/2

[Event "Charlotte IM-D May 2022"]
[Site "Charlotte"]
[Date "2022.05.06"]
[Round "3.3"]
[White "Kanli, Alperen"]
[Black "Marek, Matyas"]
[Result "1/2-1/2"]
[ECO "A57"]
[WhiteElo "2173"]
[BlackElo "2363"]
[Annotator "TA"]
[PlyCount "50"]
[EventDate "2022.05.04"]
[EventType "tourn"]
[EventCountry "USA"]
[SourceTitle "playchess.com"]
[Source "ChessBase"]
[SourceQuality "1"]
[TimeControl "5400+30"]

{[%evp 14,50,60,43,37,25,39,48,51,48,52,54,58,52,52,39,53,0,48,46,76,68,59,75,47,50,59,0,0,0,0,0,0,-58,-44,-84,-92,-225,-230]} 1. d4 {[%emt 0:00:16]} Nf6 {[%emt 0:00:04]} 2. c4 {[%emt 0:00:19][%cal Bc2c4,Bc4b5][%mdl 32]} c5 {[%emt 0:00:04]} 3. d5 {[%emt 0:01:12]} b5 {[%emt 0:00:05]} 4. cxb5 {[%emt 0:00:08]} a6 {[%emt 0:00:04]} 5. b6 {[%emt 0:00:06]} d6 {[%emt 0:00:05]} 6. Nc3 {[%emt 0:00:05]} Nbd7 {[%emt 0:00:04]} 7. e4 {[%emt 0:01:13]} g6 {[%emt 0:00:05]} 8. a4 {[%emt 0:00:14][%cal Ba2a4,Ba4a5][%mdl 32] [#] Hoping for a5.} Qxb6 {[%emt 0:00:04] A57: Benko/Volga Gambit.} 9. a5 {[%emt 0:00:39]} Qb4 {[%emt 0:00:06]} 10. Ra4 {[%emt 0:00:14]} Qb7 {[%emt 0:00:05] White is slightly better.} 11. f4 {[%emt 0:02:00]} Bg7 {[%emt 0:00:06]} 12. Bc4 {[%emt 0:00:19]} O-O {[%emt 0:00:07]} 13. Nf3 {[%emt 0:01:34]} Ne8 {[%emt 0:00:19]} 14. O-O {[%emt 0:04:27]} Nc7 {[%emt 0:00:04]} 15. Ra3 {[%emt 0:04:04]} (15. Qd3 $14) 15... Rb8 {[%emt 0:04:10]} (15... Nb5 $11 16. Rb3 Qc7) 16. Qd3 {[%emt 0:06:41]} Nf6 {[%emt 0:08:49]} 17. Rb3 {[%emt 0:19:00]} Qa8 {[%emt 0:04:43][%cal Ob8b5]} 18. Rxb8 {[%emt 0:00:38]} Qxb8 {[%emt 0:00:01]} 19. e5 {[%emt 0:00:01] [#]} Nd7 $146 {[%emt 0:03:25][%cal Rd6e5]} ({Predecessor:} 19... Nfe8 20. b3 Bg4 21. Ne4 Nb5 22. Bd2 Qa7 23. Kh1 Bxf3 24. Qxf3 dxe5 25. fxe5 Bxe5 {½-½ (37) Peetoom,F (2131)-Milde,L (2344) ICCF email 2020}) 20. e6 {[%emt 0:09:27]} (20. Re1 $14) 20... fxe6 $11 {[%emt 0:02:22]} 21. dxe6 {[%emt 0:01:45]} Nf6 {[%emt 0:00:05]} 22. f5 {[%emt 0:01:36]} d5 $1 $36 {[%emt 0:00:50][%mdl 2048] Black is pushing.} 23. Ba2 {[%emt 0:05:13]} (23. Nxd5 $11 Nfxd5 24. Bxd5) 23... c4 $15 {[%emt 0:13:12]} 24. Qe2 {[%emt 0:04:16]} gxf5 {[%emt 0:01:42] aiming for ...Ne4.} 25. Nd4 {[%emt 0:02:08] [#]} (25. Bb1 $17 {keeps fighting.}) 25... Qa7 $1 {[%emt 0:17:37][%csl LRd4,LRe6] Weighted Error Value: White=0.25 (precise) /Black=0.07 (flawless)} 1/2-1/2

[Event "Charlotte IM-D May 2022"]
[Site "Charlotte"]
[Date "2022.05.06"]
[Round "3.4"]
[White "Zaloznyy, Mike"]
[Black "Woodward, Andy"]
[Result "1-0"]
[ECO "A06"]
[WhiteElo "2125"]
[BlackElo "2354"]
[Annotator "TA"]
[PlyCount "91"]
[EventDate "2022.05.04"]
[EventType "tourn"]
[EventCountry "USA"]
[SourceTitle "playchess.com"]
[Source "ChessBase"]
[SourceQuality "1"]
[TimeControl "5400+30"]

{[%evp 9,91,14,16,19,21,6,27,21,32,32,28,32,29,39,39,46,48,10,20,20,17,9,21,27,23,0,25,7,22,-3,40,0,0,-158,-162,-183,-147,-179,-102,-122,-17,-18,-20,-395,-404,-396,-404,-809,-808,-759,-554,-545,-516,-551,-529,-516,-480,-521,542,-618,565,558,558,493,1043,993,1168,1110,2394,2494,1806,1475,29989,29989,29991,5827,29991,1434,1384,1345,1237,1101,1380,1290]} 1. Nf3 {[%emt 0:01:08]} d5 {[%emt 0:00:14]} 2. e3 {[%emt 0:00:13]} c5 {[%emt 0:00:22]} 3. b3 {[%emt 0:00:30]} a6 {[%emt 0:01:17]} 4. Bb2 {[%emt 0:01:04]} Nc6 {[%emt 0:00:17]} 5. d4 {[%emt 0:01:02]} cxd4 {[%emt 0:01:52]} 6. Nxd4 {[%emt 0:00:23] A06: Réti Opening: 1 Nf3 d5.} Nf6 {[%emt 0:00:59]} 7. Be2 {[%emt 0:05:49]} Qc7 {[%emt 0:01:13]} 8. O-O {[%emt 0:05:16] White has an edge.} e5 {[%emt 0:01:31]} 9. Nxc6 {[%emt 0:00:14]} bxc6 {[%emt 0:00:05]} 10. c4 {[%emt 0:00:14]} Bd6 {[%emt 0:00:34]} 11. Nc3 {[%emt 0:01:04][%cal Rc4d5]} Bb7 {[%emt 0:00:49]} 12. Rc1 {[%emt 0:01:06]} Qe7 {[%emt 0:01:10]} 13. Na4 {[%emt 0:05:44]} O-O {[%emt 0:01:18]} 14. Qc2 {[%emt 0:04:45]} Rfe8 {[%emt 0:07:00] [#]} 15. Rfe1 $146 {[%emt 0:05:00]} ({Predecessor:} 15. Rfd1 Rad8 16. Bf3 e4 17. Be2 h6 18. Qb1 Nh7 19. cxd5 cxd5 20. Bd4 Qh4 21. h3 {1-0 (40) Le Quang,K (2286)-Lalau,A (2084) Belgium 2014}) 15... Rad8 {[%emt 0:05:09]} 16. Bc3 {[%emt 0:01:22]} Rc8 {[%emt 0:13:32]} 17. Rcd1 {[%emt 0:05:59]} Bc7 {[%emt 0:02:08]} 18. b4 {[%emt 0:02:08]} Ne4 {[%emt 0:01:29][%cal Oa6a5]} 19. Ba1 {[%emt 0:05:44]} Qh4 {[%emt 0:06:55]} (19... Qxb4 20. Rb1 Qa5 21. Rec1 $18) 20. Bd3 {[%emt 0:05:57]} Ng5 {[%emt 0:03:43] Threatens to win with ...e4.} 21. e4 $2 {[%emt 0:05:28]} (21. Bf5 $1 $11) 21... Re6 $1 $17 {[%emt 0:11:29][%cal Og5f3]} 22. Re3 {[%emt 0:05:06] Prevents Nf3+.} (22. Nc5 Rh6 23. Kf1 (23. Nxb7 Qxh2+ 24. Kf1 Rf6 $17) 23... Qxh2 $1 24. Nxb7 Rf6 $17) 22... Rh6 {[%emt 0:03:24]} (22... dxe4 23. Bxe4 Rd6 24. Rde1 $16) 23. h3 {[%emt 0:00:27]} d4 {[%emt 0:02:12]} (23... dxe4 24. Bxe4 Rd6 25. Nc5 Rxd1+ 26. Qxd1 $16) (23... f5 $19 {And now ...f4 would win.} 24. Bf1 (24. exf5 $2 d4 $17) 24... d4) 24. Rg3 {[%emt 0:01:00]} Rf8 {[%emt 0:00:27]} (24... f5 $1 $17 {[%cal Rf5f4] aiming for ...f4.} 25. Nc5 f4 $1 26. Rxg5 Qxg5) 25. Bb2 $1 $11 {[%emt 0:01:53]} f5 $36 {[%emt 0:01:39][%cal Bf7f5,Bf5f4,Bf4f3][%mdl 2080] White is under pressure.} 26. Nc5 $2 {[%emt 0:02:43][%mdl 8192] [#]} (26. exf5 $11 {and White has nothing to worry.} e4 27. Rxg5 exd3 28. Qc1) 26... f4 $1 $19 {[%emt 0:03:48]} 27. Rxg5 {[%emt 0:03:07]} Qxg5 {[%emt 0:00:12]} 28. Nxb7 {[%emt 0:00:32]} (28. Bf1 $142 Bc8 29. Rd3) 28... f3 {[%emt 0:00:22][%csl Gf3][%cal Rg5g2]} 29. Bf1 {[%emt 0:01:11]} Rxh3 {[%emt 0:00:48]} 30. Bc1 {[%emt 0:08:54]} Qg4 {[%emt 0:01:33][%cal Oh3g3]} 31. c5 {[%emt 0:10:24]} Kh8 {[%emt 0:01:04][%cal Oh3g3] Hoping for ...Rg3!} (31... fxg2 32. Bxg2 Rc3 33. Qd2 $19) 32. Rd3 {[%emt 0:05:19]} Rf6 {[%emt 0:03:37] Inhibits Nd6.} ({Stronger than} 32... fxg2 33. Bxg2 Rxd3 34. Qxd3 $11) 33. Nd6 {[%emt 0:01:59][%cal Bb7d6,Bd6f7,Bf7g5][%mdl 32]} Rg6 $4 {[%emt 0:02:06][%mdl 8192]} (33... Bxd6 $19 {and life is good for Black.} 34. cxd6 Rxd6) 34. Nf7+ $18 {[%emt 0:00:56]} ({Avoid the trap} 34. g3 $2 {[#]} Rxg3+ $1 {[%mdl 512]} 35. fxg3 Qxg3+ 36. Qg2 fxg2 $19) 34... Kg8 {[%emt 0:00:06][%cal Rg4g2] [#] ( -> ...Qxg2+!)} 35. Ng5 $1 {[%emt 0:00:40][%mdl 512] Active counter play!} Rxg5 {[%emt 0:05:45]} 36. Qb3+ {[%emt 0:01:56]} Kh8 {[%emt 0:04:04]} (36... Kf8 $142 37. Bxg5 Qxg5) 37. Bxg5 {[%emt 0:00:03]} Qxg5 {[%emt 0:00:48]} 38. Qe6 {[%emt 0:01:03][%cal Re6e8]} Rh1+ {[%emt 0:03:13]} 39. Kxh1 {[%emt 0:00:06][%cal Re6e8]} fxg2+ {[%emt 0:00:06]} 40. Bxg2 {[%emt 0:00:19][%cal Re6e8]} h5 {[%emt 0:00:31]} 41. Rf3 {[%emt 0:01:04]} d3 {[%emt 0:00:22]} 42. Rf8+ {[%emt 0:00:29]} Kh7 {[%emt 0:00:02]} 43. Qf5+ {[%emt 0:00:46]} (43. Bh3 $142 Qh4 44. Qf5+ g6 45. Qd7+ Kh6 46. Rh8+ Kg5 47. Qe7+ Kf4 48. Qxh4+ Kf3 49. Bf1 Bd8 50. Rf8+ Bf6 51. Rxf6#) 43... Qxf5 {[%emt 0:00:06] White is clearly winning.} 44. Rxf5 {[%emt 0:00:03] Rf8 is the strong threat.} d2 {[%emt 0:00:06]} 45. Bf3 {[%emt 0:00:02] White threatens Rf8 and mate.} d1=Q+ {[%emt 0:00:09]} 46. Bxd1 {[%emt 0:00:03] What a bad dream for Black.  Weighted Error Value: White=0.46/Black=0.52} 1-0